bitfinex/quotes_ETHUSD_20230113
["timestamp","ask_amount","ask_price","bid_price","bid_amount"]
[1673596925550,62.76553055,1407.8,1407.7,1.35683362]
[1673596925732,64.88723737,1407.8,1407.7,1.35683362]
[1673596925947,62.76553055,1407.8,1407.7,1.35683362]
[1673596926400,64.88719236,1407.8,1407.7,1.35683362]
[1673596926928,63.38319236,1407.8,1407.7,1.35683362]
[1673596927232,61.26153055,1407.8,1407.7,1.35683362]
[1673596927411,63.38309211,1407.8,1407.7,1.35683362]
[1673596927884,63.38309211,1407.8,1407.7,1.35353846]
[1673596928061,59.14300533,1407.8,1407.7,1.35353846]
[1673596928273,63.38260703,1407.8,1407.7,1.35353846]
[1673596928464,59.14300533,1407.8,1407.7,1.35353846]
[1673596928656,63.38257719,1407.8,1407.7,1.35353846]
[1673596929287,63.38298091,1407.8,1407.7,1.35353846]
[1673596929559,61.26101563,1407.8,1407.7,1.35353846]
[1673596929921,50.52146721,1407.8,1407.7,1.35353846]
[1673596930130,54.76097178,1407.8,1407.7,1.35353846]
[1673596930389,57.41473223,1407.8,1407.7,1.35353846]
[1673596930707,61.26092085,1407.8,1407.7,0.5486326]
[1673596932132,63.38331933,1407.8,1407.7,0.5486326]
[1673596933289,61.26092085,1407.8,1407.7,0.5486326]
[1673596933530,63.38347473,1407.8,1407.7,0.5486326]
[1673596935093,61.26092085,1407.8,1407.7,0.5486326]
[1673596935454,63.38383833,1407.8,1407.7,0.5486326]
[1673596935650,59.14433376,1407.8,1407.7,0.5486326]
[1673596936566,63.36857996,1407.8,1407.7,0.5486326]
[1673596936772,59.14433376,1407.8,1407.7,0.5486326]
[1673596937179,61.24576191,1407.8,1407.7,0.5486326]
[1673596937393,59.73276191,1407.8,1407.7,0.5486326]
[1673596937594,55.50841628,1407.8,1407.7,0.5486326]
[1673596937954,59.73273112,1407.8,1407.7,0.5486326]
[1673596940989,57.07897067,1407.8,1407.7,0.5486326]
[1673596943167,52.85465583,1407.8,1407.7,0.5486326]
[1673596943406,56.84917903,1407.8,1407.7,0.5486326]
[1673596943628,61.55354815,1407.8,1407.7,0.5486326]
[1673596943844,61.55367935,1407.8,1407.7,0.5486326]
[1673596944904,61.78367935,1407.8,1407.7,0.5486326]
[1673596945067,55.81002495,1407.8,1407.7,0.5486326]
[1673596946313,56.04002495,1407.8,1407.7,0.5486326]
[1673596946810,52.85465583,1407.8,1407.7,0.5486326]
[1673596947954,11.82313695,1407.8,1407.7,0.5486326]
[1673596948125,8.36061522,1407.8,1407.7,0.5486326]
[1673596948333,2.39239736,1407.8,1407.7,0.5486326]
[1673596948590,12.05560096,1407.8,1407.7,0.5486326]
[1673596948803,25.2255358,1407.8,1407.7,0.5486326]
[1673596949814,22.5666122,1407.8,1407.7,0.5486326]
[1673596950249,22.56659566,1407.8,1407.7,0.5486326]
[1673596950526,16.59895736,1407.8,1407.7,0.5486326]
[1673596951076,32.32881455,1407.8,1407.7,0.5486326]
[1673596951284,35.10040961,1407.8,1407.7,0.5486326]
[1673596951541,35.90400774,1407.8,1407.7,0.5486326]
[1673596951908,35.90400774,1407.8,1407.7,0.54553347]
[1673596952273,36.7387454,1407.8,1407.7,0.54553347]
[1673596952487,36.9687454,1407.8,1407.7,0.54553347]
[1673596953172,0.31457977,1407.6,1407.4,0.14678598]
[1673596953378,29.93492207,1407.5,1407.4,0.08078598]
[1673596953629,37.04291929,1407.5,1407.4,0.08078598]
[1673596953796,37.84651742,1407.5,1407.4,0.08078598]
[1673596954012,42.16924152,1407.5,1407.4,0.08078598]
[1673596954323,48.74893413,1407.5,1407.4,0.08078598]
[1673596955165,49.45942185,1407.5,1407.4,0.08078598]
[1673596956470,51.58337513,1407.5,1407.4,0.08078598]
[1673596956898,53.09937513,1407.5,1407.4,0.08078598]
[1673596957268,53.09937513,1407.5,1407.4,1.38078598]
[1673596957482,52.38888741,1407.5,1407.4,1.38078598]
[1673596958316,46.41976138,1407.5,1407.4,1.38078598]
[1673596958526,40.58103728,1407.5,1407.4,1.38078598]
[1673596959523,37.92313764,1407.5,1407.4,1.38078598]
[1673596961518,42.24586174,1407.5,1407.4,1.38078598]
[1673596961900,37.92313764,1407.5,1407.4,1.38078598]
[1673596963119,37.39106861,1407.5,1407.4,1.38078598]
[1673596963925,39.51502189,1407.5,1407.4,1.38078598]
[1673596964313,37.39106861,1407.5,1407.4,1.38078598]
[1673596966413,38.45251145,1407.5,1407.4,1.38078598]
[1673596966972,15.61148355,1407.5,1407.4,1.38078598]
[1673596967141,8.50669355,1407.5,1407.4,1.38078598]
[1673596967356,0.099,1407.5,1407.4,1.38078598]
[1673596967570,9.85671709,1407.6,1407.4,1.38078598]
[1673596969158,9.85671709,1407.6,1407.4,2.24218854]
[1673596969373,9.85671709,1407.6,1407.4,1.38078598]
[1673596969634,2.75232709,1407.6,1407.4,1.38078598]
[1673596969852,2.65332709,1407.6,1407.4,1.38078598]
[1673596970059,9.99911071,1407.6,1407.4,1.38078598]
[1673596970276,9.85665709,1407.6,1407.4,1.38078598]
[1673596970579,8.26477284,1407.6,1407.4,1.38078598]
[1673596970812,7.20333,1407.6,1407.4,1.52500954]
[1673596971045,0.099,1407.6,1407.4,1.52500954]
[1673596971351,24.90399827,1407.7,1407.4,1.52500954]
[1673596971750,24.06460709,1407.7,1407.4,1.52500954]
[1673596972823,1.30306647,1407.6,1407.4,1.52500954]
[1673596973002,1.30306647,1407.6,1407.4,1.38078598]
[1673596973003,17.51202647,1407.6,1407.4,1.38078598]
[1673596973196,17.36940284,1407.6,1407.4,1.38078598]
[1673596973656,15.36940284,1407.6,1407.4,1.38078598]
[1673596974397,2.0,1407.5,1407.4,1.37877461]
[1673596974615,16.77353195,1407.5,1407.4,1.37877461]
[1673596974819,16.87253195,1407.5,1407.4,1.37877461]
[1673596975398,23.97732195,1407.5,1407.4,1.37877461]
[1673596976081,25.5692062,1407.5,1407.4,1.37877461]
[1673596976268,29.17553892,1407.5,1407.4,1.37877461]
[1673596976482,30.01527264,1407.5,1407.4,1.37877461]
[1673596976722,29.17588146,1407.5,1407.4,1.37877461]
[1673596976935,30.01527264,1407.5,1407.4,1.37877461]
[1673596977154,28.95348726,1407.5,1407.4,1.37877461]
[1673596977328,30.01537903,1407.5,1407.4,1.37877461]
[1673596978086,28.95348726,1407.5,1407.4,1.37877461]
[1673596979528,34.07744054,1407.5,1407.4,1.37877461]
[1673596982510,33.01530699,1407.5,1407.4,1.37877461]
[1673596983144,31.95348726,1407.5,1407.4,1.37877461]
[1673596983355,33.01551192,1407.5,1407.4,1.37877461]
[1673596983539,33.015505,1407.5,1407.4,1.37877461]
[1673596984089,31.95348726,1407.5,1407.4,1.37877461]
[1673596984829,31.95100624,1407.5,1407.4,1.37877461]
[1673596987139,34.07495952,1407.5,1407.4,1.37877461]
[1673596988514,32.71307527,1407.5,1407.4,1.37877461]
[1673596989365,37.03579937,1407.5,1407.4,1.37877461]
[1673596989574,41.34043079,1407.5,1407.4,1.37877461]
[1673596990629,39.21647751,1407.5,1407.4,1.37877461]
[1673596997430,36.55857787,1407.5,1407.4,0.50133355]
[1673596997660,36.55857787,1407.5,1407.3,0.06144965]
[1673596997852,27.09766068,1407.4,1407.3,0.06144965]
[1673596998062,28.03605186,1407.4,1407.3,0.06144965]
[1673596998638,30.69343237,1407.4,1407.3,0.06144965]
[1673596998812,36.6631537,1407.4,1407.3,0.06144965]
[1673596999028,36.66315607,1407.4,1407.3,0.06144965]
[1673596999598,30.69343237,1407.4,1407.3,0.06144965]
[1673597000322,28.03605186,1407.4,1407.3,0.06144965]
[1673597000701,38.14399051,1407.4,1407.3,0.06144965]
[1673597000912,43.02574114,1407.4,1407.3,0.06144965]
[1673597001148,57.07274114,1407.4,1407.3,0.06144965]
[1673597001574,74.23759798,1407.4,1407.3,0.06144965]
[1673597001892,73.52711026,1407.4,1407.3,0.06144965]
[1673597002687,73.57711026,1407.4,1407.3,0.06144965]
[1673597003039,73.52711026,1407.4,1407.3,0.06144965]
[1673597003446,74.39775705,1407.4,1407.3,0.06144965]
[1673597003862,62.64775705,1407.4,1407.3,0.06144965]
[1673597004314,62.64775705,1407.4,1407.3,0.01489114]
[1673597005053,62.88549093,1407.4,1407.3,0.01489114]
[1673597006052,59.70012181,1407.4,1407.3,0.01489114]
[1673597006255,62.88549093,1407.4,1407.3,0.01489114]
[1673597006521,59.70012181,1407.4,1407.3,0.01489114]
[1673597007160,61.37449093,1407.4,1407.3,0.01489114]
[1673597007834,58.18912181,1407.4,1407.3,0.01489114]
[1673597008042,61.37449093,1407.4,1407.3,0.01489114]
[1673597008510,58.18912181,1407.4,1407.3,0.01489114]
[1673597008718,61.37449093,1407.4,1407.3,0.01489114]
[1673597008887,58.18912181,1407.4,1407.3,0.01489114]
[1673597009099,61.37449093,1407.4,1407.3,0.01489114]
[1673597009760,62.89349093,1407.4,1407.3,0.01489114]
[1673597010313,62.02284414,1407.4,1407.3,0.01489114]
[1673597010525,58.83747502,1407.4,1407.3,0.01489114]
[1673597010700,57.713713,1407.4,1407.3,1.31489114]
[1673597010912,57.18099913,1407.4,1407.3,1.31489114]
[1673597011470,61.49013027,1407.4,1407.3,1.31489114]
[1673597011663,57.18099913,1407.4,1407.3,1.31489114]
[1673597011878,55.66199913,1407.4,1407.3,1.31489114]
[1673597012421,55.66199913,1407.4,1407.3,0.47942377]
[1673597012729,59.95782369,1407.4,1407.3,0.47942377]
[1673597014475,58.43882369,1407.4,1407.3,0.47942377]
[1673597015962,58.44038984,1407.4,1407.3,0.47942377]
[1673597016166,54.14456528,1407.4,1407.3,0.47942377]
[1673597018397,56.2684976,1407.4,1407.3,0.47942377]
[1673597018609,56.26847885,1407.4,1407.3,0.47942377]
[1673597019642,52.38262106,1407.4,1407.3,0.47942377]
[1673597019851,9.87441726,1407.4,1407.3,0.47942377]
[1673597020196,2.99183685,1407.4,1407.3,0.47942377]
[1673597020361,8.93602608,1407.4,1407.3,0.47942377]
[1673597020567,1.92972608,1407.4,1407.3,0.47942377]
[1673597020781,1.83072608,1407.4,1407.3,0.47942377]
[1673597021617,2.89282601,1407.4,1407.3,0.47942377]
[1673597021827,2.89282601,1407.4,1407.3,1.99842377]
[1673597022304,9.99812601,1407.4,1407.3,1.99842377]
[1673597022512,10.09712601,1407.4,1407.3,1.99842377]
[1673597025031,2.99182601,1407.4,1407.3,2.35581224]
[1673597025246,1.16109993,1407.5,1407.3,23.21174496]
[1673597025453,2.75409213,1407.7,1407.4,17.81693272]
[1673597025626,1.06209993,1407.7,1407.4,17.81693272]
[1673597025861,1.27439198,1407.7,1407.5,3.78169327]
[1673597026200,1.16109993,1407.8,1407.5,21.59732599]
[1673597026409,2.75409213,1407.9,1407.7,3.038]
[1673597026581,1.26212684,1407.8,1407.6,1.585]
[1673597026783,2.65509213,1407.9,1407.7,3.1965]
[1673597026990,1.5929922,1407.9,1407.8,3.035]
[1673597027204,1.79303401,1407.9,1407.8,3.035]
[1673597027739,3.91694758,1407.9,1407.8,3.035]
[1673597027957,2.8537637,1407.9,1407.8,3.49095]
[1673597028184,2.8537637,1407.9,1407.8,4.79095]
[1673597029031,1.79303401,1407.9,1407.8,4.79095]
[1673597029402,2.65366332,1407.9,1407.8,4.79095]
[1673597029611,2.85372827,1407.9,1407.8,4.79095]
[1673597029874,2.85372827,1407.9,1407.8,6.30795]
[1673597030040,1.26073607,1407.9,1407.8,6.30795]
[1673597030667,2.75268646,1408.0,1407.8,20.51451]
[1673597030879,2.75268646,1408.0,1407.9,5.187795]
[1673597030880,1.06069426,1408.0,1407.9,5.187795]
[1673597031347,1.26044551,1408.0,1407.9,5.187795]
[1673597031715,1.26044551,1408.0,1407.9,6.487795]
[1673597031926,1.06069426,1408.0,1407.9,6.487795]
[1673597032663,2.65368646,1408.1,1407.9,6.487795]
[1673597032868,2.85324952,1408.1,1408.0,0.6487795]
[1673597033189,2.85324952,1408.1,1408.0,4.536]
[1673597033729,2.85324952,1408.1,1408.0,3.031]
[1673597034131,1.26025732,1408.1,1408.0,3.031]
[1673597035717,27.97301969,1408.2,1408.0,3.031]
[1673597035940,26.38002749,1408.2,1408.1,1.515]
[1673597036157,25.72378121,1408.2,1408.1,1.515]
[1673597036508,27.31677341,1408.2,1408.1,1.515]
[1673597038075,25.72378121,1408.2,1408.1,1.515]
[1673597039234,27.31677341,1408.2,1408.1,1.515]
[1673597039844,25.72378121,1408.2,1408.1,1.515]
[1673597040285,11.52066121,1408.2,1408.1,1.515]
[1673597040664,8.52066121,1408.2,1408.1,1.515]
[1673597044534,15.62213121,1408.2,1408.1,1.515]
[1673597044809,27.45965446,1408.2,1408.1,0.39933263]
[1673597045028,27.45965446,1408.2,1408.0,1.512]
[1673597045029,29.05264666,1408.2,1408.0,1.512]
[1673597045173,9.00549451,1408.1,1408.0,1.512]
[1673597045388,9.10449451,1408.1,1408.0,1.512]
[1673597046226,2.00273451,1408.1,1408.0,1.512]
[1673597046437,9.00549451,1408.1,1408.0,1.512]
[1673597046798,9.10449451,1408.1,1408.0,1.512]
[1673597047181,10.16518877,1408.1,1408.0,1.512]
[1673597047390,9.10449451,1408.1,1407.7,6.80699702]
[1673597047597,10.16518877,1408.1,1407.8,1.516]
[1673597047967,7.20076,1408.1,1408.0,1.519]
[1673597048171,8.26145426,1408.1,1408.0,0.64022176]
[1673597048377,15.36321426,1408.1,1408.0,0.64022176]
[1673597048756,14.30252,1408.1,1408.0,0.64022176]
[1673597049224,15.36321426,1408.1,1408.0,0.64022176]
[1673597049438,14.30252,1408.1,1408.0,0.64022176]
[1673597050776,14.30252,1408.1,1407.8,3.522]
[1673597050777,14.30252,1408.1,1407.9,1.519]
[1673597051967,15.36321426,1408.1,1407.9,1.519]
[1673597052122,14.30252,1408.1,1407.9,1.519]
[1673597053437,15.36321426,1408.1,1407.9,1.519]
[1673597055935,16.95620646,1408.1,1407.9,1.519]
[1673597057905,1.16210887,1408.0,1407.9,1.519]
[1673597059961,2.75510107,1408.0,1407.9,1.519]
[1673597062230,3.81832038,1408.0,1407.9,1.519]
[1673597062457,20.81057456,1408.0,1407.9,1.519]
[1673597062673,32.38603153,1408.0,1407.8,1.516]
[1673597062890,5.8622723,1407.9,1407.8,1.516]
[1673597063207,5.9612723,1407.9,1407.8,1.516]
[1673597063586,4.89892922,1407.9,1407.8,1.516]
[1673597063809,3.25592922,1407.9,1407.8,1.516]
[1673597063995,12.40791605,1407.9,1407.8,1.51356759]
[1673597064208,9.85269465,1407.9,1407.8,1.51356759]
[1673597064453,5.48150281,1407.9,1407.8,1.51356759]
[1673597064855,9.85247509,1407.9,1407.8,1.51356759]
[1673597066112,8.29147509,1407.9,1407.8,1.51356759]
[1673597067676,10.94569649,1407.9,1407.8,1.51356759]
[1673597070878,3.92155719,1407.9,1407.8,1.51356759]
[1673597071039,3.82255719,1407.9,1407.8,11.70789835]
[1673597074189,3.82555719,1407.9,1407.8,11.70789835]
[1673597074431,3.82255719,1407.9,1407.8,11.70789835]
[1673597075137,2.22532818,1407.9,1407.8,4.60461835]
[1673597075368,2.22532818,1407.9,1407.8,3.03256759]
[1673597078605,1.59732177,1407.9,1407.8,3.03256759]
[1673597078824,1.69873638,1407.9,1407.8,3.03256759]
[1673597081986,3.82264995,1407.9,1407.8,3.03256759]
[1673597082293,1.69873638,1407.9,1407.8,3.03256759]
[1673597082509,1.69873638,1407.9,1407.8,10.13584759]
[1673597084527,1.69873638,1407.9,1407.8,17.23912759]
[1673597084853,1.69873638,1407.9,1407.8,19.67997635]
[1673597088098,2.76344267,1407.9,1407.8,19.67997635]
[1673597088476,2.76344267,1407.9,1407.8,21.3383305]
[1673597088700,1.16370629,1408.0,1407.8,33.11033518]
[1673597088926,1.06470629,1408.0,1407.9,6.48838767]
[1673597089114,1.06470629,1408.0,1407.9,27.79669767]
[1673597089320,1.06470629,1408.0,1407.9,27.79254981]
[1673597089543,2.66202806,1408.1,1408.0,2.0]
[1673597089759,1.16569268,1408.1,1408.0,26.33481]
[1673597090054,1.16569268,1408.1,1408.0,28.88972508]
[1673597090657,2.76301445,1408.1,1408.0,28.88972508]
[1673597090833,1.16569268,1408.1,1408.0,28.88972508]
[1673597092324,1.16569268,1408.1,1408.0,25.86172508]
[1673597092494,1.11569268,1408.1,1408.0,23.86172508]
[1673597094285,1.11569268,1408.1,1408.0,27.4680578]
[1673597094622,1.77272382,1408.2,1408.0,27.4680578]
[1673597094798,1.67372382,1408.2,1408.1,6.04718148]
[1673597095155,1.77253845,1408.2,1408.1,27.35246148]
[1673597095332,0.17521668,1408.2,1408.1,27.35246148]
[1673597095547,1.77253845,1408.2,1408.1,7.10176]
[1673597096681,1.77253845,1408.2,1408.1,14.20352]
[1673597098615,0.17521668,1408.2,1408.1,24.91161272]
[1673597099235,0.07640205,1408.2,1408.1,24.91161272]
[1673597099753,0.17503923,1408.2,1408.1,24.91161272]
[1673597099964,0.17503923,1408.2,1408.1,28.11956199]
[1673597100288,0.17502102,1408.2,1408.1,28.11956199]
[1673597100860,0.07640205,1408.2,1408.1,28.11956199]
[1673597102541,1.13864126,1408.2,1408.1,28.11956199]
[1673597102850,1.23727354,1408.2,1408.1,28.11956199]
[1673597103217,0.07640205,1408.2,1408.1,28.11956199]
[1673597103657,1.13864126,1408.2,1408.1,28.11956199]
[1673597103863,0.07640205,1408.2,1408.1,28.11956199]
[1673597104079,1.13864126,1408.2,1408.1,28.11956199]
[1673597105099,0.07640205,1408.2,1408.1,28.11956199]
[1673597105215,1.13864126,1408.2,1408.1,24.91161272]
[1673597105425,0.07640205,1408.2,1408.1,24.91161272]
[1673597106110,2.69964126,1408.2,1408.0,14.26991]
[1673597106309,2.69964126,1408.2,1408.0,7.10188]
[1673597106310,4.29696303,1408.2,1408.0,7.10188]
[1673597106805,0.4296963,1408.1,1408.0,7.10188]
[1673597107019,1.06223921,1408.1,1408.0,7.10188]
[1673597107682,15.62566303,1408.2,1408.0,7.10188]
[1673597107996,15.72466303,1408.2,1408.0,7.10188]
[1673597108223,1.06223921,1408.1,1408.0,7.10188]
[1673597108578,1.16113522,1408.1,1408.0,7.10188]
[1673597108837,1.06223921,1408.1,1408.0,7.10188]
[1673597109056,1.16113358,1408.1,1408.0,7.10188]
[1673597109804,1.13802876,1408.1,1408.0,7.10188]
[1673597111768,1.13692343,1408.1,1408.0,7.10188]
[1673597111984,1.13692343,1408.1,1408.0,21.30642]
[1673597112173,1.03913439,1408.1,1408.0,21.30642]
[1673597112383,14.66242382,1408.2,1408.0,21.30642]
[1673597112724,13.06510205,1408.2,1408.0,21.30642]
[1673597112891,14.66242382,1408.2,1408.0,21.30642]
[1673597113354,13.06510205,1408.2,1408.0,21.30642]
[1673597115194,14.66242382,1408.2,1408.0,27.76025672]
[1673597115403,1.77272382,1408.2,1408.0,27.76025672]
[1673597115618,0.07640205,1408.2,1408.1,3.60633272]
[1673597115859,0.17414369,1408.2,1408.1,24.91161272]
[1673597116091,0.17414369,1408.2,1408.1,29.81816639]
[1673597117965,0.07640205,1408.2,1408.1,29.81816639]
[1673597119352,0.17415385,1408.2,1408.1,29.81816639]
[1673597119871,1.13919935,1408.2,1408.1,29.81816639]
[1673597120257,1.23695115,1408.2,1408.1,29.81816639]
[1673597120421,2.73652112,1408.2,1408.1,21.30528]
[1673597120614,1.77147562,1408.2,1408.1,21.30528]
[1673597121426,1.77147562,1408.2,1408.1,7.10176]
[1673597123242,3.89538919,1408.2,1408.1,7.10176]
[1673597126087,2.29806742,1408.2,1408.1,7.10176]
[1673597126505,3.89371465,1408.2,1408.1,7.10176]
[1673597126722,1.76980108,1408.2,1408.1,21.30528]
[1673597127045,1.23785907,1408.2,1408.1,24.152596]
[1673597127211,2.8335063,1408.2,1408.1,24.152596]
[1673597128052,1.23785907,1408.2,1408.1,24.152596]
[1673597132573,2.8335063,1408.2,1408.1,24.152596]
[1673597133472,1.80732618,1408.2,1408.1,24.152596]
[1673597134102,3.40297341,1408.2,1408.1,24.152596]
[1673597134316,2.33926819,1408.2,1408.1,21.30528]
[1673597134687,3.40323399,1408.2,1408.1,21.30528]
[1673597135020,2.33926819,1408.2,1408.1,21.30528]
[1673597136542,3.40321642,1408.2,1408.1,21.30528]
[1673597137263,4.36542996,1408.2,1408.1,21.30528]
[1673597137579,4.46318176,1408.2,1408.1,21.30528]
[1673597140000,3.40323846,1408.2,1408.1,21.30528]
[1673597140385,2.33926819,1408.2,1408.1,21.30528]
[1673597141270,4.46318176,1408.2,1408.1,21.30528]
[1673597141750,2.33926819,1408.2,1408.1,21.30528]
[1673597143223,4.46318176,1408.2,1408.1,21.30528]
[1673597143415,2.33926819,1408.2,1408.1,21.30528]
[1673597146568,1.80761804,1408.2,1408.1,21.30528]
[1673597146812,1.80761804,1408.2,1408.1,24.152596]
[1673597147023,1.80761804,1408.2,1408.1,27.75892872]
[1673597149350,1.80761804,1408.2,1408.1,24.91161272]
[1673597149722,3.40326527,1408.2,1408.1,24.91161272]
[1673597150999,1.80761804,1408.2,1408.1,24.91161272]
[1673597151218,3.40326527,1408.2,1408.1,24.91161272]
[1673597151825,1.80761804,1408.2,1408.1,24.91161272]
[1673597152279,3.40326527,1408.2,1408.1,24.91161272]
[1673597152495,1.80761804,1408.2,1408.1,24.91161272]
[1673597152712,3.40326527,1408.2,1408.1,24.91161272]
[1673597152868,3.40326527,1408.2,1408.1,28.11956199]
[1673597153076,1.80740035,1408.2,1408.1,29.7783159]
[1673597154183,0.64586916,1408.2,1408.1,29.7783159]
[1673597155816,1.70986624,1408.2,1408.1,29.7783159]
[1673597156057,1.80723183,1408.2,1408.1,29.7783159]
[1673597156917,1.70986624,1408.2,1408.1,29.7783159]
[1673597157545,1.70986624,1408.2,1408.1,19.46860663]
[1673597157763,1.80724566,1408.2,1408.1,17.80985272]
[1673597158393,3.40289289,1408.2,1408.1,17.80985272]
[1673597160128,3.40289289,1408.2,1408.1,24.91161272]
[1673597160335,1.80724566,1408.2,1408.1,24.91161272]
[1673597160789,3.40289289,1408.2,1408.1,24.91161272]
[1673597161002,3.40289289,1408.2,1408.1,17.80985272]
[1673597161543,3.40289289,1408.2,1408.1,21.30528]
[1673597162854,1.80724566,1408.2,1408.1,21.30528]
[1673597164798,3.40289289,1408.2,1408.1,21.30528]
[1673597165103,3.40289289,1408.2,1408.1,14.20352]
[1673597165713,2.33889581,1408.2,1408.1,14.20352]
[1673597166055,8.8330366,1408.2,1408.0,7.16817]
[1673597166264,4.31930287,1408.1,1408.0,10.71050272]
[1673597166426,4.31930287,1408.1,1408.0,10.70850272]
[1673597167076,4.31930287,1408.1,1408.0,7.10217]
[1673597167272,4.31930287,1408.1,1407.9,21.37338]
[1673597167483,4.22192345,1408.1,1407.9,24.91371272]
[1673597168106,2.66092345,1408.1,1407.9,24.91371272]
[1673597168321,2.75827921,1408.1,1407.9,24.91371272]
[1673597168739,1.06436938,1408.0,1407.9,24.91029927]
[1673597168992,1.06436938,1408.0,1407.9,26.57001989]
[1673597169227,2.66092345,1408.1,1407.9,26.57001989]
[1673597169530,1.06436938,1408.0,1407.9,24.91029927]
[1673597169702,1.06436938,1408.0,1407.9,26.57004221]
[1673597170965,1.06436938,1408.0,1407.9,26.56986605]
[1673597171384,2.66092345,1408.1,1407.9,26.56986605]
[1673597171614,2.75812468,1408.1,1407.9,24.91029927]
[1673597173159,1.06436938,1408.1,1407.9,24.91029927]
[1673597173400,1.16162291,1408.1,1407.9,24.91029927]
[1673597176201,1.16162291,1408.1,1407.9,28.57412358]
[1673597176421,1.16162291,1408.1,1407.9,30.47692753]
[1673597180000,2.75817698,1408.1,1407.9,28.57412358]
[1673597180203,2.75817698,1408.1,1407.9,24.91029927]
[1673597180774,1.06436938,1408.1,1407.9,24.91029927]
[1673597181087,1.1615929,1408.1,1407.9,24.91029927]
[1673597181264,1.06436938,1408.1,1407.9,24.91029927]
[1673597181648,1.16159084,1408.1,1407.9,24.91029927]
[1673597182403,2.75814491,1408.1,1407.9,24.91029927]
[1673597183063,2.75814491,1408.1,1407.9,14.20149655]
[1673597184202,2.66092345,1408.1,1407.9,14.20149655]
[1673597184415,2.75817463,1408.1,1407.9,14.20149655]
[1673597185187,1.16162056,1408.1,1407.9,14.20149655]
[1673597185340,1.06436938,1408.1,1407.9,14.20149655]
[1673597185551,1.16160921,1408.1,1408.0,3.60633272]
[1673597185810,1.16160921,1408.1,1408.0,24.91314272]
[1673597186047,2.75816328,1408.1,1408.0,24.91314272]
[1673597187177,1.16160921,1408.1,1408.0,24.91314272]
[1673597187706,2.75816328,1408.1,1408.0,24.91314272]
[1673597188074,1.16160921,1408.1,1408.0,24.91314272]
[1673597188289,1.16160921,1408.1,1408.0,27.72544675]
[1673597188647,26.66489261,1408.2,1408.0,27.72544675]
[1673597189080,1.16150231,1408.1,1408.0,27.72544675]
[1673597189403,1.06436938,1408.1,1408.0,27.72544675]
[1673597189789,26.66489261,1408.2,1408.0,27.72544675]
[1673597190184,1.16141048,1408.1,1408.0,27.72544675]
[1673597190542,1.06436938,1408.1,1408.0,27.72544675]
[1673597191236,1.16141042,1408.1,1408.0,21.30681]
[1673597191467,1.16141042,1408.1,1408.0,7.10227]
[1673597191926,1.16141042,1408.1,1408.0,14.20454]
[1673597194011,1.16141042,1408.1,1408.0,7.10227]
[1673597195067,2.75796449,1408.1,1408.0,7.10227]
[1673597198749,1.69359511,1408.1,1408.0,7.10227]
[1673597201522,2.30259655,1408.1,1408.0,7.10227]
[1673597202322,7.56197259,1408.1,1407.9,0.066]
[1673597202550,4.31904622,1408.0,1407.8,22.37166196]
[1673597202729,4.22200518,1408.0,1407.8,18.87472468]
[1673597202940,4.22200518,1408.0,1407.8,20.77779227]
[1673597203553,2.66100518,1408.0,1407.8,20.77779227]
[1673597203763,2.758227,1408.0,1407.8,20.77779227]
[1673597204237,2.758227,1408.0,1407.9,1.66313121]
[1673597206556,2.758227,1408.0,1407.9,8.76590121]
[1673597206868,1.16167293,1408.0,1407.9,8.76590121]
[1673597207472,2.758227,1408.0,1407.9,8.76590121]
[1673597207652,1.16167293,1408.0,1407.9,8.76590121]
[1673597207861,2.758227,1408.0,1407.9,8.76590121]
[1673597208339,1.16167293,1408.0,1407.9,8.76590121]
[1673597209366,3.36900662,1408.1,1407.9,22.94742121]
[1673597209587,3.27000662,1408.1,1407.9,28.38706]
[1673597210117,3.27000662,1408.1,1408.0,1.66252472]
[1673597210335,1.77046259,1408.1,1408.0,8.76479472]
[1673597211528,1.77046259,1408.1,1408.0,15.86706472]
[1673597212099,1.77046259,1408.1,1408.0,15.8637538]
[1673597214680,1.67345255,1408.1,1408.0,15.8637538]
[1673597214832,1.77044779,1408.1,1408.0,15.8637538]
[1673597215497,1.67345255,1408.1,1408.0,15.8637538]
[1673597215673,1.77044805,1408.1,1408.0,15.8637538]
[1673597216197,1.67345255,1408.1,1408.0,15.8637538]
[1673597216660,1.77036913,1408.1,1408.0,15.8637538]
[1673597221043,1.77036913,1408.1,1408.0,14.20454]
[1673597224964,1.77036913,1408.1,1408.0,21.30681]
[1673597229720,0.60900144,1408.1,1408.0,21.30681]
[1673597229929,1.67345255,1408.1,1408.0,21.30681]
[1673597230521,0.60900144,1408.1,1408.0,21.30681]
[1673597232341,0.60900144,1408.1,1408.0,23.01179399]
[1673597232553,0.60900144,1408.1,1408.0,25.61594746]
[1673597235122,0.60900144,1408.1,1408.0,26.67833942]
[1673597235123,0.60587439,1408.1,1408.0,26.67833942]
[1673597236246,0.60223763,1408.1,1408.0,26.67833942]
[1673597240204,0.60223763,1408.1,1408.0,25.61594746]
[1673597241479,0.60223763,1408.1,1408.0,23.01179399]
[1673597241706,0.60223763,1408.1,1408.0,23.01379399]
[1673597242007,0.60223763,1408.1,1408.0,23.01179399]
[1673597246637,0.60223763,1408.1,1408.0,24.07418595]
[1673597247782,0.60223763,1408.1,1408.0,27.68051867]
[1673597247953,0.60223763,1408.1,1408.0,30.61452933]
[1673597248895,0.60223763,1408.1,1408.0,32.51759692]
[1673597249525,0.60223763,1408.1,1408.0,30.61452933]
[1673597266268,0.60223763,1408.1,1408.0,32.51759692]
[1673597266474,0.60223763,1408.1,1408.0,30.61452933]
[1673597269312,0.60223763,1408.1,1408.0,27.68051867]
[1673597272639,0.57954303,1408.1,1408.0,27.68051867]
[1673597274424,1.64399414,1408.1,1408.0,27.68051867]
[1673597276173,1.64399414,1408.1,1408.0,20.57824867]
[1673597276391,1.7320793,1408.1,1408.0,19.51585671]
[1673597277557,1.7320793,1408.1,1408.0,15.90952399]
[1673597278394,3.32863337,1408.1,1408.0,15.90952399]
[1673597278738,3.32863337,1408.1,1408.0,14.20454]
[1673597279102,1.7320793,1408.1,1408.0,15.90933989]
[1673597279532,3.32863337,1408.1,1408.0,15.90933989]
[1673597280195,3.32863337,1408.1,1408.0,14.20454]
[1673597280415,3.32863337,1408.1,1408.0,7.10227]
[1673597280725,1.7320793,1408.1,1408.0,7.10227]
[1673597280904,3.32863337,1408.1,1408.0,7.10227]
[1673597281456,1.7320793,1408.1,1408.0,8.80689015]
[1673597281840,1.7320793,1408.1,1408.0,15.90916015]
[1673597282677,0.57954303,1408.1,1408.0,15.90916015]
[1673597283320,0.57954303,1408.1,1408.0,16.97155211]
[1673597283640,0.57954303,1408.1,1408.0,15.90916015]
[1673597283991,0.57954303,1408.1,1408.0,29.90137987]
[1673597284933,0.57954303,1408.1,1408.0,30.96377183]
[1673597285296,0.57954303,1408.1,1408.0,32.86683942]